Cogmind - Beta 13 @@@ ROGUE MODE // 2024.04.10 @ 17:13:42 Player: Terrible T Rex Result: Self-destructed Performance ------------- Evolutions (1) 500 Regions Visited (2) 400 Robots Destroyed (12) 60 Value Destroyed (345) 345 Prototype IDs (0) 0 Alien Tech Used (0) 0 Bonus (0) 0 TOTAL SCORE: 1305 Bonus ------- None Cogmind --------- Core Integrity 319/400 Matter 296/300 Energy 100/100 System Corruption 3% Temperature Warning (348) Movement Core (200) Ox3 Location -9/Materials Parts ------- > --- POWER (1) -------- (None) > --- PROPULSION (2) --- (None) > --- UTILITY (3) ------ Small Storage Unit Sensor Array > --- WEAPON (3) ------- EMP Blaster > --- INVENTORY (8) ---- (None) Peak State ------------ > --- POWER ------------ Improved Ion Engine > --- PROPULSION ------- Light Treads Wheel > --- UTILITY ---------- Heat Sink Small Storage Unit Sensor Array > --- WEAPON ----------- Beam Rifle Particle Gun Light Assault Rifle > --- INVENTORY -------- (None) [Rating: 12] Favorites ----------- Power Ion Engine Engine Ion Engine Propulsion Light Treads Treads Light Treads Wheel Wheel Utility Small Storage Unit Device Sensor Array Storage Small Storage Unit Processor Signal Interpreter Weapon Light Assault Rifle Energy Gun Particle Gun Ballistic Gun Light Assault Rifle Launcher EMP Blaster Build | -11 -10 -9 ------- Run | Yrd Mat Mat Slots Evolved 2 | . . 2 Power . | . . . Propulsion . | . . . Utility 1 | . . 1 Weapon 1 | . . 1 Parts Attached 19 | 6 5 8 Power 3 | 1 . 2 Engine 3 | 1 . 2 Core . | . . . Reactor . | . . . Propulsion 4 | 2 . 2 Treads 3 | 2 . 1 Leg . | . . . Wheel 1 | . . 1 Hover . | . . . Flight . | . . . Utility 6 | 1 4 1 Device 2 | . 1 1 Storage 3 | 1 2 . Processor 1 | . 1 . Hackware . | . . . Protection . | . . . Artifact . | . . . Weapon 6 | 2 1 3 Energy Gun 2 | . 1 1 Energy Cannon . | . . . Ballistic Gun 3 | 2 . 1 Ballistic Cannon . | . . . Launcher 1 | . . 1 Special Weapon . | . . . Impact Weapon . | . . . Slashing Weapon . | . . . Piercing Weapon . | . . . Special Melee Weapon . | . . . Unidentified Prototypes . | . . . Parts Lost 11 | . 1 10 Power 2 | . . 2 Propulsion 3 | . . 3 Utility 1 | . . 1 Weapon 5 | . 1 4 Highest Loss Streak 6 | . 1 6 To Critical Strikes . | . . . Average Slot Usage (%) 89 | . 96 82 Engine 11 | . 14 8 Treads 21 | . 28 14 Wheel 2 | . . 5 Device 10 | . 8 13 Storage 12 | . 14 11 Processor 1 | . 2 . Energy Gun 7 | . 2 13 Ballistic Gun 20 | . 24 14 Naked Turns . | . . . Heaviest Build 21 | 13 15 21 Greatest Support 40 | 40 40 40 Greatest Overweight (x) 2 | . . 2 Average Overweight (x) . | . . . Largest Inventory Capacity 20 | 8 20 8 Average Capacity 7 | 7 8 8 Most Carried 3 | 2 2 3 Average Carried 1 | . 1 1 Final Capacity 8 | 8 8 8 Final Carried 1 | 1 1 . Class Distribution -------------------- 75% | Mutant 21% | Scavenger-Skirmisher 3% | Scavenger-Mutant Dominant Class ---------------- Mutant | -10/Materials Scavenger-Skirmisher | -9/Materials Resources | -11 -10 -9 ----------- Run | Yrd Mat Mat Matter Collected 478 | 242 150 86 Remotely . | . . . Salvage Created 461 | . 257 204 Parts 25 | . 12 13 Haulers Intercepted 1 | . 1 . Recyclers Shooed . | . . . Parts Field Recycled . | . . . Retrieved Matter . | . . . Parts Self-Destructed . | . . . Prevented . | . . . Kills | -11 -10 -9 ------- Run | Yrd Mat Mat Combat Hostiles Destroyed 10 | . 4 6 Guns 10 | . 4 6 Classes Destroyed 5 | . 3 2 Hauler 1 | . 1 . Watcher 1 | . 1 . Swarmer 3 | . . 3 Grunt 4 | . 4 . Sentry 3 | . . 3 Best Kill Streak 4 | . 4 3 Combat Bots Only 4 | . 4 3 Max Kills in Single Turn 1 | . 1 1 Gunslinging . | . . . Exploded . | . . . Melee . | . . . Uniques/NPCs Destroyed . | . . . Combat | -11 -10 -9 -------- Run | Yrd Mat Mat Hostile Shots Fired 95 | . 33 62 Missed 21 | . 7 14 Damage Taken 1151 | . 363 788 Core 127 | . 46 81 Absorbed by Shields . | . . . Core Remaining (%) 90 | 100 81 . Volleys Fired 52 | . 25 27 Largest 3 | . 2 3 Hottest 141 | . 40 141 Shots Fired 123 | . 49 74 Gun 122 | . 49 73 Cannon . | . . . Launcher 1 | . . 1 Special . | . . . Kinetic 85 | . 49 36 Thermal 37 | . . 37 Explosive . | . . . Electromagnetic 1 | . . 1 Robot Hit Streak 14 | . 8 14 Robot Miss Streak 4 | . 4 4 Penetration Max . | . . . Secondary Targets . | . . . Shots Hit Robots 86 | . 33 53 Core Hits 25 | . 12 13 Critical Kills 1 | . 1 . Critical Parts Destroyed . | . . . Critical Strikes 1 | . 1 . Destroy 1 | . 1 . Melee Attacks . | . . . Impact . | . . . Slashing . | . . . Piercing . | . . . Sneak Attacks . | . . . Combat Hostiles . | . . . Follow-up Attacks . | . . . Damage Inflicted 1016 | . 368 648 Guns 972 | . 368 604 Cannons . | . . . Explosions 44 | . . 44 Melee . | . . . Ramming . | . . . Kinetic 578 | . 368 210 Thermal 394 | . . 394 Explosive . | . . . Electromagnetic 44 | . . 44 Impact . | . . . Slashing . | . . . Piercing . | . . . Highest Corruption 3 | . . 3 Average Corruption 2 | . . 2 Corruption Purged . | . . . Corruption Blocked . | . . . Effects 3 | . . 3 Message Errors 1 | . . 1 Matter Fused 1 | . . 1 Weapon Failures 1 | . . 1 Overload Shots . | . . . Overflow Damage 8 | . . 8 Projectiles . | . . . Explosions 8 | . . 8 Melee . | . . . Knockbacks . | . . . Impact . | . . . Kinetic . | . . . Secondary . | . . . Self-Inflicted Damage 20 | . . 20 Shots 1 | . . 1 Rammed . | . . . Targets Rammed . | . . . Kicked . | . . . Crushed . | . . . Highest Temperature 348 | . 34 348 Average Temperature 106 | . 13 133 Received Heat Transfer 372 | . 228 144 Effects 1 | . . 1 Short Circuit 1 | . . 1 Siege Activations . | . . . Robots Corrupted . | . . . Combat Hostiles . | . . . Parts Fried . | . . . Impact Corruptions . | . . . Robots Melted . | . . . Combat Hostiles . | . . . Parts Melted . | . . . Heat Transferred 962 | . . 962 Parts Sabotaged . | . . . Parts Stolen . | . . . Parts Stripped . | . . . Power Chain Reactions . | . . . Alert | -11 -10 -9 ------- Run | Yrd Mat Mat Peak Influence 258 | . 171 258 Initial 72 | . . 72 Average 91 | . 76 136 Maximum Alert Level 1 | . . 1 Low Security (%) 95 | 100 100 87 Level 1 4 | . . 12 Level 2 . | . . . Level 3 . | . . . Level 4 . | . . . Level 5 . | . . . High Security . | . . . Max Security . | . . . Squads Dispatched . | . . . Investigation . | . . . Extermination . | . . . Reinforcement . | . . . Assault . | . . . Garrison . | . . . Intercept . | . . . Searches Triggered . | . . . Construction Impeded . | . . . Haulers Reinforced . | . . . Active Scanning Responses . | . . . Cargo Convoy Interrupts . | . . . Stealth | -11 -10 -9 --------- Run | Yrd Mat Mat Distress Signals 1 | . . 1 Communications Jammed . | . . . Distress Signals . | . . . Times Spotted 19 | . 8 11 Peak Tracking Total 7 | . 5 7 Tactical Retreats 1 | . . 1 Traps | -11 -10 -9 ------- Run | Yrd Mat Mat Traps Triggered 2 | . . 2 Indirectly . | . . . Trap Hack Attempts . | . . . Triggered . | . . . Disarmed . | . . . Reprogrammed . | . . . Reused . | . . . Traps Extracted . | . . . Installed . | . . . Triggered . | . . . Machines | -11 -10 -9 ---------- Run | Yrd Mat Mat Machines Disabled . | . . . Max in Single Turn . | . . . Machines Repaired . | . . . Machines Dismantled . | . . . Machines Sabotaged . | . . . Overloaded Fab Kills . | . . . Hacking | -11 -10 -9 --------- Run | Yrd Mat Mat Machines Accessed 1 | . 1 . Terminals 1 | . 1 . Fabricators . | . . . Repair Stations . | . . . Recycling Units . | . . . Scanalyzers . | . . . Garrison Access . | . . . Total Hacks 2 | . 2 . Successful 2 | . 2 . Failed . | . . . Catastrophic . | . . . Database Lockouts . | . . . Manual . | . . . Terminals 2 | . 2 . Fabricators . | . . . Repair Stations . | . . . Recycling Units . | . . . Scanalyzers . | . . . Garrison Access . | . . . Terminal Hacks 2 | . 2 . Record 2 | . 2 . Fabricator Hacks . | . . . Repair Station Hacks . | . . . Recycling Unit Hacks . | . . . Scanalyzer . | . . . Garrison Access Hacks . | . . . Unauthorized Hacks . | . . . Terminals . | . . . Fabricators . | . . . Repair Stations . | . . . Recycling Units . | . . . Scanalyzers . | . . . Garrison Access . | . . . Data Cores Recovered . | . . . Used . | . . . Hacking Detections . | . . . Full Trace Events . | . . . Feedback Events . | . . . Feedback Blocked . | . . . Robot Schematics Acquired . | . . . Robots Built . | . . . Authchips . | . . . Time . | . . . Total Robot Build Rating . | . . . Part Schematics Acquired . | . . . Parts Built . | . . . Authchips . | . . . Time . | . . . Total Part Build Rating . | . . . Parts Repaired . | . . . Time . | . . . Parts Recycled . | . . . Recycled Matter . | . . . Retrieved Matter . | . . . Retrieved Components . | . . . Parts Scanalyzed . | . . . Part Schematics Acquired . | . . . Parts Damaged . | . . . Bothacking | -11 -10 -9 ------------ Run | Yrd Mat Mat Used RIF Installer . | . . . Robots Hacked . | . . . Non-combat . | . . . Combat . | . . . Robot Hacks Applied . | . . . Relay Couplers Released . | . . . Fabnet Peak Effective % . | . . . Robots Rewired . | . . . Allies Hacked . | . . . Hacks Repelled . | . . . Allies | -11 -10 -9 -------- Run | Yrd Mat Mat Total Allies . | . . . Largest Group . | . . . Highest-Rated Group . | . . . Highest-Rated Ally . | . . . Total Orders . | . . . Ally Attacks . | . . . Total Damage . | . . . Kills . | . . . Allies Corrupted . | . . . Allies Melted . | . . . Intel | -11 -10 -9 ------- Run | Yrd Mat Mat Robot Analysis Total . | . . . Derelict Logs Recovered . | . . . Drone Launches . | . . . Drone Recoveries . | . . . Exploration | -11 -10 -9 ------------- Run | Yrd Mat Mat Turns Passed 622 | 70 308 244 Spaces Moved 299 | 38 140 121 Core 1 | 1 . . Treads 216 | 37 140 39 Legs . | . . . Wheels 82 | . . 82 Hover . | . . . Flight . | . . . Fastest Speed 50 | 50 160 95 Average Speed 143 | 157 160 118 Slowest Speed 160 | 160 160 160 Overloaded Moves . | . . . Propulsion Burnouts . | . . . Robots Hopped . | . . . Cave-ins Triggered . | . . . Exploration Rate (%) 18 | 3 37 15 Regions Visited 2 Branch Regions . Pre-discovered Areas . | . . . Known Exits Taken . | . . . Unknown Exits Taken 2 | 1 1 . Scrap Searched . | . . . Spaces Dug . | . . . Terrain Destroyed . | . . . Melee . | . . . Projectile . | . . . AOE . | . . . Terrain Rammed . | . . . Walls Destroyed . | . . . Machines Disabled . | . . . Actions | -11 -10 -9 --------- Run | Yrd Mat Mat Total 394 | 46 179 169 Wait 9 | . 6 3 Move 297 | 37 139 121 Hop . | . . . Pick Up 14 | 3 3 8 Fast Attach 5 | 4 1 . Attach 10 | 2 1 7 Detach . | . . . Swap 4 | . 3 1 Drop 3 | . 1 2 Fire 52 | . 25 27 Melee . | . . . Ram . | . . . Kick . | . . . Crush . | . . . Escape Stasis . | . . . Rewire . | . . . Trap . | . . . Miscellaneous . | . . . Route ------- -11/Scrapyard -10/Materials -9/Materials History --------- Turn | Location | Event 2 | -11/Scrapyard | Met Revision 17 29 | -11/Scrapyard | Discovered new exit (range 16) 71 | -11/Scrapyard | Entered Materials 310 | -10/Materials | Build established: Mutant 360 | -10/Materials | Discovered new exit (range 8) 379 | -10/Materials | Entered another Materials area 379 | -9/Materials | Evolved 2 slots: Utility x1, Weapon x1 495 | -9/Materials | Lost 3 parts (1p2n) 623 | -9/Materials | Self-destructed Last Messages --------------- 00553_ Y-45 Defender destroyed. 00554_ K-01 Serf collects debris. 00557_ Acquired 29 matter. 00558_ K-01 Serf collects debris. 00559_ 00603_ Wheel destroyed. 00611_ Lgt. Treads severed. 00613_ Heat Sink destroyed. 00616_ Beam Rifle destroyed. [Achievement: Let's See Who's Tougher] 00620_ Imp. Ion Engine destroyed. 00620_ Destroyed Imp. Ion Engine. 00621_ Particle Gun destroyed. 00621_ Lgt. Assault Rifle destroyed. Map ----- +----------------------------------------------------+ | ????????????????????????????????????????? | | ????????????????????????????????????????? | | ????????????????????????????????????????? | | ????????????????????????????????????????? | | ????????????????????????????????????????? | | ????????????????????????????????????????? | | ????????????????????????????????????????? | | ????????????????????????????????????????? | | ????????????????????????????????????????? | | ????????????????????????????????????????? | | ????????????????????????????????????????? | | ????????????????????????????????????????? | | ?????????????????? ???????????????????? | | ?????????????????? #??????????????????? | | ?????????????????? ? #??????????????????? | | ?????????????????? #??????????????????? | | ?????????????????# ^#??????????????????? | | ????????????????? +??????????????????? | | ?????????????????# #??????????????????? | | ?????????????????# +??????????????????? | | ???########??????# #??????????????????? | | ???# #??????# #??????????????????? | | ???# """ ######## #??????????????????? | | ???# """ # # #??????????????????? | | ???# """ # =# #??????????????????? | | ???# # @# ###########????????? | | ???# # %l= ## #????????? | | ???####+### =#g ## """"" #????????? | | ????# # # ## """"" #????????? | | ????# ######## ## """"" #????????? | | ????# #?????# ? # #????????? | | ????# #?????# # """"" #????????? | | ????# #?????# + """"" #????????? | | ????### ###?????# # """"" #????????? | | ??????# #???????# # #????????? | | ??????# ###?????## ###########????????? | | ??????# ########% #?????? #????????? | | ??????# + *#[ # #????????? | | ####### # + + #????????? | | # # # # # #????????? | | # # # # ######+####????????? | | # # ######## ##?????????????????? | | # # ####### ##????????????????? | | # """ # ???????????????? | | # """*+ ???????????????? | | # """%# ??????????????? | | # [# ^ ###+### #####?????????????? | | # #^^ #?????###+###?????????????????? | | #=* # #???????? ???????????????????? | | # # #????????" ???????????????????? | +----------------------------------------------------+ Best States ------------- Heat Dissipation 38 Energy Generation 12 Energy Capacity 265 Matter Stores 300 Matter Capacity 300 Sight Range 16 Robot Scan Range 14 Terrain Scan Density 10 Evasion (%) 41 Recoil Reduction 2 Item Schematics ----------------- None Robot Schematics ------------------ None Fabricated ------------ Nothing Alien Tech Used ----------------- None Achievements -------------- Crack Shot Let's See Who's Tougher Loot Pinata Challenges ------------ None Game ------ Seed MachineLatentTorch Manual? 0 Play Time 00:20:10 Cumulative 1.5 hours Start 2024.04.06 @ 18:31:50 End 2024.04.10 @ 17:13:42 Sessions 1 Manual Loads 0 Difficulty Rogue Special Mode None Game No. 5 Rogue 5 Adventurer 0 Explorer 0 Win Type - Total 0 Types 0/0/0/0/0/0/0/0/0 Lore% 0 Gallery% 3 Achievement% 1 Wizard Run 0 Options --------- Layout 1 ASCII 0 Keyboard 0 Movement Mouse Keybinds 0 Fullscreen 1 Font 24/Smallcaps Map View 50x35 Zoom Use 0% Tactical HUD 1 Map Filters NONE Filters NONE Steam 1 RUN: 6b3647f1-eec4-45a7-bd81-2f6cc161dcb2